fUSD/lending_fUSD_20260219
["ID","MTS","AMOUNT","RATE_DAILY","PERIOD"]
[406006550,1771524643624,-500.0,0.00013698,2]
[406006551,1771524643633,-507.84698515,0.00013698,2]
[406006552,1771524643643,-500.0,0.00013698,2]
[406006553,1771524643651,-500.0,0.00013698,2]
[406006554,1771524643661,-500.0,0.00013698,2]
[406006555,1771524643670,-500.0,0.00013698,2]
[406006556,1771524643679,-500.0,0.00013698,2]
[406006557,1771524643688,-500.0,0.00013698,2]
[406006558,1771524643697,-500.0,0.00013698,2]
[406006559,1771524643706,-500.0,0.00013698,2]
[406006560,1771524643716,-500.0,0.00013698,2]
[406006561,1771524643725,-500.0,0.00013698,2]
[406006562,1771524643735,-500.0,0.00013698,2]
[406006563,1771524643743,-500.0,0.00013698,2]
[406006564,1771524643753,-500.0,0.00013698,2]
[406006565,1771524643762,-500.0,0.00013698,2]
[406006566,1771524643771,-500.0,0.00013698,2]
[406006567,1771524643780,-500.0,0.00013698,2]
[406006568,1771524643790,-500.0,0.00013698,2]
[406006569,1771524643799,-342.80366921,0.00013698,2]
[406006570,1771524643807,-9999.99,0.00013699,2]
[406006571,1771524643817,-150.99,0.00013699,2]
[406006572,1771524643826,-1612.7,0.00013699,2]
[406006573,1771524643836,-172.19524008,0.00014057,2]
[406006574,1771524643846,-166.66,0.00014092,2]
[406006575,1771524643855,-592.14708546,0.00014439,2]
[406006576,1771524643864,-430.6868651,0.00014439,2]
[406006577,1771524643873,-10162.380146,0.00014554,7]
[406006578,1771524643883,-151.0,0.00014693,2]
[406006579,1771524643892,-36885.006318,0.00014696,7]
[406006580,1771524643901,-2535.508019,0.00014696,7]
[406006581,1771524643910,-1000.0,0.00014886,2]
[406006582,1771524643919,-1336.19415286,0.00014937,2]
[406006583,1771524643929,-250.0,0.00015,2]
[406006584,1771524643938,-504.01,0.00015068,2]
[406006585,1771524643947,-173.66088786,0.00015219,2]
[406006586,1771524643956,-166.66,0.00015255,2]
[406006587,1771524643966,-592.14708546,0.00015304,2]
[406006588,1771524643975,-430.6868651,0.00015304,2]
[406006589,1771524643984,-3240.0,0.00015998,2]
[406006590,1771524643993,-592.14708546,0.00016169,2]
[406006591,1771524644003,-430.6868651,0.00016169,2]
[406006592,1771524644013,-166.66,0.00016418,2]
[406006593,1771524644023,-504.01,0.00016438,2]
[406006594,1771524644032,-500.0,0.00017,2]
[406006595,1771524644041,-528.0,0.00017,2]
[406006596,1771524644050,-300.0,0.00017,2]
[406006597,1771524644059,-592.14708546,0.00017035,2]
[406006598,1771524644068,-430.6868651,0.00017035,2]
[406006599,1771524644077,-189.36637923,0.00017301,2]
[406006600,1771524644086,-1000.0,0.00017548,2]
[406006601,1771524644096,-200.0,0.00017682,2]
[406006602,1771524644105,-800.0,0.00017808,2]
[406006603,1771524644114,-172.19524008,0.000179,2]
[406006604,1771524644123,-592.14708546,0.000179,2]
[406006605,1771524644133,-430.6868651,0.000179,2]
[406006606,1771524644142,-500.0,0.00017999,2]
[406006607,1771524644151,-500.0,0.00017999,2]
[406006608,1771524644159,-500.0,0.00017999,2]
[406006609,1771524644169,-500.0,0.00017999,2]
[406006610,1771524644178,-500.0,0.00017999,2]
[406006611,1771524644188,-500.0,0.00017999,2]
[406006612,1771524644196,-256.86452513,0.00017999,2]
[406006613,1771524644206,-150.0,0.00017999,2]
[406006614,1771524644215,-150.0,0.00017999,2]
[406006615,1771524644224,-150.0,0.00017999,2]
[406006616,1771524644233,-150.0,0.00017999,2]
[406006617,1771524644243,-150.0,0.00017999,2]
[406006618,1771524644252,-280.08837994,0.00017999,2]
[406006619,1771524644262,-300.0,0.00017999,2]
[406006620,1771524644272,-666.0,0.00017999,2]
[406006621,1771524644285,-300.0,0.00017999,2]
[406006622,1771524644294,-578.58045251,0.00017999,2]
[406006623,1771524644303,-370.89476093,0.00017999,2]
[406006624,1771524644312,-625.56165564,0.00017999,2]
[406006625,1771524644322,-500.0,0.00017999,2]
[406006626,1771524644332,-500.0,0.00017999,2]
[406006627,1771524644342,-500.0,0.00017999,2]
[406006628,1771524644353,-500.0,0.00017999,2]
[406006629,1771524644362,-500.0,0.00017999,2]
[406006630,1771524644371,-506.79161606,0.00017999,2]
[406006631,1771524644381,-500.0,0.00017999,2]
[406006632,1771524644390,-500.0,0.00017999,2]
[406006633,1771524644399,-500.0,0.00017999,2]
[406006634,1771524644409,-500.0,0.00017999,2]
[406006635,1771524644418,-500.0,0.00017999,2]
[406006636,1771524644427,-500.0,0.00017999,2]
[406006637,1771524644435,-500.0,0.00017999,2]
[406006638,1771524644445,-500.0,0.00017999,2]
[406006639,1771524644455,-150.0,0.00017999,2]
[406006640,1771524644464,-500.0,0.00017999,2]
[406006641,1771524644473,-144214.06917629,0.00018,2]
[406006642,1771524644486,-994820.53861285,0.00018,2]
[406006643,1771524644497,-2447.95531118,0.00018,2]
[406006644,1771524644518,-729.86254861,0.00018,2]
[406006645,1771524644528,-47641.93730111,0.00018,2]
[406006646,1771524644539,-5315.1,0.00018,2]
[406006647,1771524644549,-644303.96035087,0.00018,2]
[406006648,1771524644560,-178927.99239397,0.00018,2]
[406006654,1771524644669,-27.66250259,0.00018,2]
[406006657,1771524644680,-1203.55824115,0.00018,2]
[406006683,1771524645466,-2681.09432384,0.00018,2]
[406006684,1771524645478,-104327.26251832,0.00018,2]
[406006685,1771524645489,-459.58986104,0.00018,2]
[406006686,1771524645505,-1689.67854996,0.00018,2]
[406006687,1771524645578,-2790.4119159,0.00018,2]
[406006722,1771525831711,-310.536,9.906e-05,2]
[406006723,1771525831720,-265.9,0.00010007,2]
[406006724,1771525831730,-300.0,0.00010007,2]
[406006725,1771525831739,-1200.0,0.00010007,2]
[406006726,1771525831748,-150.0,0.00010007,2]
[406006727,1771525831757,-300.0,0.00010007,2]
[406006728,1771525831767,-815053.74137444,0.00010008,2]
[406006729,1771525831778,-58704.56588415,0.00010008,2]
[406006730,1771525831789,-105145.58403368,0.00010008,2]
[406006731,1771525831800,-176661.72016518,0.00010008,2]
[406006732,1771525831811,-1254.41808677,0.00010008,2]
[406006733,1771525831821,-250.0,0.00010008,2]
[406006734,1771525831832,-449.15355578,0.00010008,2]
[406006735,1771525831851,-500.0,0.00010102,2]
[406006736,1771525831861,-200.0,0.00010102,2]
[406006738,1771525831874,-151.0,0.00010102,2]
[406006740,1771525831884,-151.0,0.00010102,2]
[406006742,1771525831893,-151.0,0.00010102,2]
[406006744,1771525831902,-151.0,0.00010102,2]
[406006746,1771525831912,-151.0,0.00010102,2]
[406006748,1771525831922,-151.0,0.00010102,2]
[406006750,1771525831931,-151.0,0.00010102,2]
[406006752,1771525831940,-92.38045289,0.00010102,2]
[406006754,1771525831952,-58.61954711,0.00010102,2]
[406006757,1771525831962,-151.0,0.00010102,2]
[406006760,1771525831971,-98.67251631,0.00010102,2]
[406006765,1771525831982,-52.32748369,0.00010102,2]
[406006767,1771525831992,-151.0,0.00010102,2]
[406006769,1771525832001,-265.9,0.00010281,2]
[406006771,1771525832010,-265.9,0.00010555,2]
[406006774,1771525832020,-265.9,0.00010829,2]
[406006778,1771525832030,-1081.27696924,0.000109,2]
[406006781,1771525832039,-265.9,0.00011103,2]
[406006784,1771525832049,-150.0,0.00013649,2]
[406006787,1771525832058,-450.29554708,0.00013698,2]
[406006842,1771525837585,-79.32976468,0.00013698,2]
[406006843,1771525837595,-422.58467,0.0001419,7]
[406006844,1771525837606,-1081.27696922,0.00014843,2]
[406006845,1771525837615,-173.66088786,0.00015106,2]
[406006846,1771525837629,-2907.32593108,0.0001512,2]
[406006847,1771525837642,-1435.23376814,0.0001512,2]
[406006848,1771525837656,-317.76,0.0001512,2]
[406006849,1771525837672,-104.62530727,0.0001512,2]
[406006850,1771525837682,-500.0,0.00017,2]
[406006851,1771525837691,-528.0,0.00017,2]
[406006852,1771525837701,-528.230838,0.00017028,7]
[406006853,1771525837711,-1000.0,0.00017548,2]
[406006854,1771525837721,-471.20618098,0.00017582,2]
[406006855,1771525837733,-579.9732624,0.00017582,2]
[406006992,1771525839726,-448.82055662,0.00017582,2]
[406006994,1771525839735,-199.39,0.00017792,2]
[406006996,1771525839744,-976.11152161,0.000179,2]
[406006998,1771525839753,-1802.22304326,0.000179,2]
[406007000,1771525839762,-2463.11226052,0.000179,2]
[406007002,1771525839771,-2428.18905218,0.000179,2]
[406007015,1771525839887,-287.98374498,0.000179,2]
[406007017,1771525839898,-519.56113632,0.000179,2]
[406007019,1771525839909,-1288.63248971,0.000179,2]
[406007024,1771525839945,-86.63579353,0.000179,2]
[406007026,1771525839954,-334.18100626,0.000179,2]
[406007028,1771525839966,-629.65141963,0.000179,2]
[406007039,1771525840054,-5886.68936702,0.000179,2]
[406007041,1771525840064,-308.36294288,0.000179,3]
[406007043,1771525840073,-2504.95020662,0.000179,2]
[406007045,1771525840083,-1463.31312055,0.000179,2]
[406007047,1771525840093,-200.0,0.00017916,2]
[406007049,1771525840103,-1463.3131205,0.00017919,2]
[406007051,1771525840112,-1463.3131205,0.00017938,2]
[406007053,1771525840123,-1463.3131205,0.00017958,2]
[406007055,1771525840132,-1463.3131205,0.00017977,2]
[406007057,1771525840142,-3240.0,0.00017985,2]
[406007059,1771525840151,-1463.3131205,0.00017996,2]
[406007061,1771525840162,-300.0,0.00017999,2]
[406007064,1771525840171,-666.0,0.00017999,2]
[406007066,1771525840180,-150.0,0.00017999,2]
[406007068,1771525840189,-243.49376112,0.00017999,2]
[406007070,1771525840199,-437.89315895,0.00017999,2]
[406007072,1771525840208,-259.62633265,0.00017999,2]
[406007074,1771525840217,-500.0,0.00017999,2]
[406007076,1771525840227,-500.0,0.00017999,2]
[406007078,1771525840236,-500.0,0.00017999,2]
[406007080,1771525840245,-405.00631676,0.00017999,2]
[406007082,1771525840255,-500.0,0.00017999,2]
[406007084,1771525840264,-500.0,0.00017999,2]
[406007086,1771525840273,-500.0,0.00017999,2]
[406007088,1771525840283,-500.0,0.00017999,2]
[406007090,1771525840293,-209.75413125,0.00017999,2]
[406007092,1771525840303,-500.0,0.00017999,2]
[406007094,1771525840313,-500.0,0.00017999,2]
[406007096,1771525840322,-500.0,0.00017999,2]
[406007098,1771525840332,-300.0,0.00017999,2]
[406007099,1771525840341,-500.0,0.00017999,2]
[406007102,1771525840355,-500.0,0.00017999,2]
[406007104,1771525840366,-500.0,0.00017999,2]
[406007106,1771525840380,-500.0,0.00017999,2]
[406007109,1771525840393,-331.39134126,0.00017999,2]
[406007111,1771525840403,-500.0,0.00017999,2]
[406007113,1771525840413,-19210.33985858,0.00018,2]
[406007115,1771525840425,-1613.38149951,0.00018,2]
[406007118,1771525840437,-4580.05,0.00018,2]
[406007120,1771525840448,-4979.76509798,0.00018,2]
[406007122,1771525840460,-2784.03994496,0.00018,2]
[406007265,1771525843888,-1351.50601158,0.00018,2]
[406007266,1771525843941,-13180.86534622,0.00018,2]
[406007267,1771525843954,-16742.25,0.00018,2]
[406007268,1771525844050,-9128.68163511,0.00018,2]
[406007271,1771525845436,-2310.28332296,0.00018,2]
[406007272,1771525845758,-6527.5,0.00018,2]
[406007310,1771527031731,-236.73,9.7e-05,2]
[406007311,1771527031741,-250.0,9.753e-05,2]
[406007312,1771527031750,-151.0,0.0001,2]
[406007313,1771527031759,-151.0,0.0001,2]
[406007314,1771527031769,-35.65783658,0.0001,2]
[406007315,1771527031781,-115.34216342,0.0001,2]
[406007316,1771527031790,-151.0,0.0001,2]
[406007317,1771527031799,-151.0,0.0001,2]
[406007318,1771527031808,-151.0,0.0001,2]
[406007319,1771527031817,-151.0,0.0001,2]
[406007320,1771527031826,-151.0,0.0001,2]
[406007321,1771527031836,-151.0,0.0001,2]
[406007322,1771527031847,-151.0,0.0001,2]
[406007323,1771527031856,-151.0,0.0001,2]
[406007324,1771527031866,-250.0,0.0001067,2]
[406007325,1771527031875,-232.421569,0.00013343,2]
[406007326,1771527031886,-1660.59,0.00013669,2]
[406007327,1771527031895,-166.66,0.00013756,2]
[406007328,1771527031908,-1660.59,0.00013796,2]
[406007329,1771527031919,-1660.59,0.00013923,2]
[406007330,1771527031928,-500.0,0.00013994,2]
[406007332,1771527031938,-166.66,0.00014045,2]
[406007334,1771527031948,-1660.59,0.0001405,2]
[406007336,1771527031957,-888.5852,0.00014077,2]
[406007338,1771527031966,-1660.59,0.00014177,2]
[406007340,1771527031975,-1660.59,0.00014304,2]
[406007343,1771527031985,-166.66,0.00014335,2]
[406007345,1771527031995,-200.0,0.00014419,2]
[406007347,1771527032004,-1660.59,0.00014431,2]
[406007349,1771527032013,-1660.59,0.00014558,2]
[406007351,1771527032023,-166.66,0.00014624,2]
[406007353,1771527032032,-1660.59,0.00014685,2]
[406007355,1771527032041,-1660.59,0.00014812,2]
[406007357,1771527032050,-159.51,0.00014869,2]
[406007359,1771527032060,-166.66,0.00014914,2]
[406007361,1771527032070,-1660.59,0.00014939,2]
[406007363,1771527032080,-250.0,0.00015,2]
[406007365,1771527032089,-1660.59,0.00015066,2]
[406007367,1771527032098,-1660.59,0.00015193,2]
[406007368,1771527032108,-166.66,0.00015204,2]
[406007369,1771527032119,-1660.59,0.0001532,2]
[406007370,1771527032128,-1660.59,0.00015447,2]
[406007371,1771527032137,-1660.59,0.00015574,2]
[406007372,1771527032147,-1660.59,0.00015701,2]
[406007373,1771527032156,-1660.59,0.00015828,2]
[406007374,1771527032165,-1660.59,0.00015954,2]
[406007375,1771527032174,-290.526961,0.00016012,7]
[406007376,1771527032183,-1660.59,0.00016081,2]
[406007377,1771527032193,-529.0,0.00017,2]
[406007378,1771527032202,-151.0,0.00017724,2]
[406007379,1771527032212,-1000.0,0.00017724,2]
[406007380,1771527032221,-1000.0,0.00017724,2]
[406007381,1771527032230,-1000.0,0.00017724,2]
[406007382,1771527032239,-5000.0,0.00017724,2]
[406007383,1771527032248,-5000.0,0.00017724,2]
[406007384,1771527032258,-277.35679052,0.00017724,2]
[406007385,1771527032267,-250.0,0.00017724,2]
[406007386,1771527032276,-200.0,0.00017724,2]
[406007387,1771527032285,-250.0,0.00017724,2]
[406007388,1771527032298,-200.0,0.00017724,2]
[406007389,1771527032307,-200.0,0.00017724,2]
[406007390,1771527032317,-303.47387582,0.00017724,2]
[406007391,1771527032326,-200.0,0.00017724,2]
[406007392,1771527032335,-200.0,0.00017724,2]
[406007393,1771527032345,-200.0,0.00017724,2]
[406007394,1771527032354,-159.92339311,0.00017724,2]
[406007395,1771527032363,-151.0,0.00017724,2]
[406007396,1771527032372,-156.587,0.00017724,2]
[406007397,1771527032381,-250.0,0.00017724,2]
[406007398,1771527032391,-250.0,0.00017724,2]
[406007399,1771527032400,-162.380719,0.00017724,2]
[406007400,1771527032410,-250.0,0.00017724,2]
[406007401,1771527032419,-159.38200698,0.00017724,2]
[406007402,1771527032428,-250.0,0.00017724,2]
[406007403,1771527032437,-250.0,0.00017724,2]
[406007404,1771527032446,-250.0,0.00017724,2]
[406007405,1771527032455,-250.0,0.00017724,2]
[406007406,1771527032465,-250.0,0.00017724,2]
[406007407,1771527032475,-250.0,0.00017724,2]
[406007408,1771527032484,-250.0,0.00017724,2]
[406007409,1771527032494,-250.0,0.00017724,2]
[406007410,1771527032503,-693.3919763,0.00017724,2]
[406007411,1771527032512,-500.0,0.00017724,2]
[406007412,1771527032522,-500.0,0.00017724,2]
[406007413,1771527032531,-500.0,0.00017724,2]
[406007414,1771527032540,-500.0,0.00017724,2]
[406007415,1771527032549,-500.0,0.00017724,2]
[406007416,1771527032558,-500.0,0.00017724,2]
[406007417,1771527032568,-500.0,0.00017724,2]
[406007418,1771527032578,-500.0,0.00017724,2]
[406007419,1771527032587,-500.0,0.00017724,2]
[406007420,1771527032596,-500.0,0.00017724,2]
[406007421,1771527032606,-500.0,0.00017724,2]
[406007422,1771527032615,-500.0,0.00017724,2]
[406007423,1771527032624,-500.0,0.00017724,2]
[406007424,1771527032633,-500.0,0.00017724,2]
[406007425,1771527032643,-500.0,0.00017724,2]
[406007426,1771527032653,-500.0,0.00017724,2]
[406007427,1771527032662,-500.0,0.00017724,2]
[406007428,1771527032674,-500.0,0.00017724,2]
[406007429,1771527032683,-500.0,0.00017724,2]
[406007430,1771527032692,-500.0,0.00017724,2]
[406007431,1771527032702,-151.0,0.00017779,2]
[406007432,1771527032712,-719.04747942,0.00017779,2]
[406007433,1771527032721,-151.0,0.00017834,2]
[406007434,1771527032731,-745.65223616,0.00017834,2]
[406007435,1771527032740,-1000.0,0.00017887,2]
[406007436,1771527032750,-2500.0,0.00017887,2]
[406007437,1771527032760,-151.0,0.00017889,2]
[406007438,1771527032771,-773.2413689,0.00017889,2]
[406007439,1771527032780,-5000.0,0.000179,2]
[406007440,1771527032790,-205.57529524,0.000179,3]
[406007441,1771527032799,-565.0373289,0.000179,2]
[406007442,1771527032809,-1669.96680442,0.000179,2]
[406007443,1771527032819,-4567.0145286,0.000179,2]
[406007444,1771527032828,-801.85129955,0.00017944,2]
[406007445,1771527032838,-3671.1203894,0.00017987,2]
[406007446,1771527032850,-23589.36078034,0.00017987,2]
[406007447,1771527032862,-253.83271447,0.00017987,2]
[406007448,1771527032874,-469.57288,0.00017987,2]
[406007635,1771527039974,-10360.00000014,0.00017987,2]
[406007638,1771527039985,-1253.34650676,0.00017987,2]
[406007654,1771527040132,-505.0,0.00017987,2]
[406007671,1771527040343,-22790.61049299,0.00017987,2]
[406007673,1771527040352,-831.51979763,0.00017999,2]
[406007675,1771527040362,-300.0,0.00017999,2]
[406007677,1771527040371,-666.0,0.00017999,2]
[406007679,1771527040381,-300.0,0.00017999,2]
[406007681,1771527040391,-666.0,0.00017999,2]
[406007683,1771527040401,-150.0,0.00017999,2]
[406007686,1771527040416,-150.0,0.00017999,2]
[406007688,1771527040425,-243.80837786,0.00017999,2]
[406007690,1771527040435,-283.50442173,0.00017999,2]
[406007692,1771527040444,-306.52521126,0.00017999,2]
[406007694,1771527040454,-500.0,0.00017999,2]
[406007696,1771527040463,-500.0,0.00017999,2]
[406007698,1771527040472,-500.0,0.00017999,2]
[406007700,1771527040482,-500.0,0.00017999,2]
[406007702,1771527040492,-500.0,0.00017999,2]
[406007704,1771527040502,-500.0,0.00017999,2]
[406007706,1771527040511,-500.0,0.00017999,2]
[406007708,1771527040520,-556.82789187,0.00017999,2]
[406007710,1771527040529,-150.0,0.00017999,2]
[406007712,1771527040538,-314.59903792,0.00017999,2]
[406007714,1771527040548,-1000.0,0.00018,2]
[406007716,1771527040557,-1000.0,0.00018,2]
[406007718,1771527040566,-1000.0,0.00018,2]
[406007720,1771527040576,-609.83415431,0.00018,2]
[406007721,1771527040585,-182582.88622362,0.00018,2]
[406007746,1771527045070,-265.92646311,0.00018,2]
[406007747,1771527045082,-565.0373289,0.00018,2]
[406007748,1771527045734,-646.0500007,0.00018,2]
[406007749,1771527045948,-69701.46350076,0.00018,2]
[406007750,1771527046055,-5491.82829858,0.00018,2]
[406007825,1771528231913,-585.62040426,0.00010977,2]
[406007830,1771528231965,-1744.33479863,0.00010977,2]
[406007831,1771528231977,-170.04479711,0.00010977,2]
[406007832,1771528231986,-195.0,0.0001098,2]
[406007834,1771528231995,-300.0,0.00010984,2]
[406007836,1771528232005,-785.41849561,0.00010999,2]
[406007841,1771528232088,-712.57717035,0.00010999,2]
[406007842,1771528232101,-604.8069,0.00010999,2]
[406007845,1771528238144,-397.19743404,0.00010999,2]
[406007846,1771528238154,-195.0,0.00011,2]
[406007847,1771528238167,-195.0,0.00011,2]
[406007848,1771528238181,-300.0,0.00011015,2]
[406007849,1771528238190,-300.0,0.00011015,2]
[406007851,1771528238202,-300.0,0.00011015,2]
[406007853,1771528238211,-217.85424343,0.00011037,2]
[406007865,1771528240392,-82.14575657,0.00011037,2]
[406007866,1771528240403,-258.20424343,0.00011054,2]
[406007883,1771528245808,-463.35377226,0.00011054,2]
[406007884,1771528246024,-1778.44198431,0.00011054,2]
[406007885,1771528246038,-747.4695,0.00011081,2]
[406007886,1771528246048,-2617.6288,0.00011789,2]
[406007887,1771528246058,-4588.95971559,0.00011789,2]
[406007888,1771528246077,-2445.79163461,0.00011789,2]
[406007889,1771528246087,-2500.0,0.00012066,2]
[406007890,1771528246097,-195.0,0.00012066,2]
[406007891,1771528246107,-300.0,0.00012066,2]
[406007892,1771528246118,-2500.0,0.00012066,2]
[406007893,1771528246128,-195.0,0.00012074,2]
[406007895,1771528246139,-1500.39,0.00012306,2]
[406007897,1771528246148,-7034.75135014,0.00012468,2]
[406007898,1771528246157,-7034.75135014,0.00013147,2]
[406007899,1771528246170,-159.789829,0.00013667,2]
[406007900,1771528246179,-7034.75135014,0.00013826,2]
[406007901,1771528246190,-4175.23645445,0.00014505,2]
[406007943,1771528435316,244.31372153,0.00018,30]
[406007973,1771529431966,-745.33102828,0.00010679,2]
[406007979,1771529432021,-454.66897172,0.00010679,2]
[406007981,1771529432030,-150.0,0.00010679,2]
[406007982,1771529432039,-274.27291555,0.00010679,2]
[406007983,1771529432050,-25.72708445,0.00010679,2]
[406007984,1771529432059,-250.0,0.00010679,2]
[406007985,1771529432070,-340.35,0.0001068,2]
[406007986,1771529432081,-1599.30770189,0.0001068,2]
[406007987,1771529432093,-5480.89558734,0.0001068,2]
[406007988,1771529432104,-3935.87063297,0.0001068,2]
[406007989,1771529432116,-8301.16846777,0.0001068,2]
[406007990,1771529432127,-726.89716718,0.0001068,2]
[406007991,1771529432138,-1321.58232096,0.0001068,2]
[406007992,1771529432150,-3521.02374977,0.0001068,2]
[406007993,1771529432161,-1335.46765191,0.0001068,2]
[406007994,1771529432171,-9805.73974299,0.0001068,2]
[406007995,1771529432183,-1825.06357538,0.0001068,2]
[406007996,1771529432193,-924.05253866,0.0001068,2]
[406007997,1771529432204,-1147.18000044,0.0001068,2]
[406007998,1771529432219,-7014.02668848,0.0001068,2]
[406007999,1771529432231,-861.64940807,0.0001068,2]
[406008000,1771529432243,-324.01857318,0.0001068,2]
[406008002,1771529432254,-320.65660765,0.0001068,2]
[406008004,1771529432265,-625.6194234,0.0001068,2]
[406008005,1771529432275,-26042.42535835,0.0001068,2]
[406008010,1771529438131,-251.84898469,0.0001068,2]
[406008011,1771529438186,-20825.19611892,0.0001068,2]
[406008012,1771529438196,-337.0,0.0001074,2]
[406008013,1771529438206,-250.0,0.0001075,2]
[406008014,1771529438215,-10506.9479,0.0001078,2]
[406008015,1771529438225,-151.0,0.00010873,2]
[406008016,1771529438235,-151.0,0.00010873,2]
[406008017,1771529438245,-151.0,0.00010873,2]
[406008018,1771529438255,-151.0,0.00010873,2]
[406008019,1771529438264,-151.0,0.00010873,2]
[406008020,1771529438274,-151.0,0.00010873,2]
[406008021,1771529438284,-151.0,0.00010873,2]
[406008022,1771529438295,-151.0,0.00010873,2]
[406008024,1771529438305,-151.0,0.00010873,2]
[406008025,1771529438314,-151.0,0.00010873,2]
[406008026,1771529438323,-151.0,0.00010873,2]
[406008027,1771529438332,-479.369487,0.00011161,2]
[406008028,1771529438342,-300.0,0.00011747,2]
[406008029,1771529438351,-300.0,0.00011747,2]
[406008030,1771529438361,-300.0,0.00011747,2]
[406008031,1771529438371,-300.0,0.00011747,2]
[406008032,1771529438380,-300.0,0.00011747,2]
[406008033,1771529438389,-195.0,0.00011747,2]
[406008034,1771529438399,-195.0,0.00011747,2]
[406008036,1771529438408,-195.0,0.00011747,2]
[406008038,1771529438418,-195.0,0.00011747,2]
[406008039,1771529438428,-195.0,0.00011747,2]
[406008041,1771529438437,-250.0,0.00011747,2]
[406008043,1771529438447,-150.0,0.0001459,2]
[406008045,1771529438456,-1489.12,0.00014704,2]
[406008047,1771529438468,-166.66,0.00015115,2]
[406008048,1771529438477,-166.66,0.00015433,2]
[406008049,1771529438491,-167.48,0.00015496,2]
[406008050,1771529438500,-1852.42,0.00015628,2]
[406008051,1771529438510,-118.01965341,0.00015751,2]
[406008052,1771529438523,-48.64034659,0.00015751,2]
[406008053,1771529438534,-309.51066872,0.00016063,2]
[406008089,1771529440325,-2930.48933128,0.00016063,2]
[406008090,1771529440336,-166.66,0.00016069,2]
[406008091,1771529440346,-503.43697055,0.00016081,2]
[406008092,1771529440527,-596.92245011,0.00016081,2]
[406008093,1771529440582,-341.54,0.00016081,2]
[406008104,1771529445437,-400.2,0.00016081,2]
[406008106,1771529445972,-338.87266997,0.00010679,2]
[406008107,1771529445984,-1518.81597667,0.00010679,2]
[406008108,1771529446029,-53934.66114349,0.00010679,2]
[406008109,1771529446040,-1002.99212309,0.00010679,2]
[406008110,1771529446189,-1778.6626329,0.00010679,2]
[406008111,1771529446203,-1670.61167819,0.00010679,2]
[406008112,1771529446243,-261.98000005,0.00010679,2]
[406008119,1771529446418,-265.30671787,0.00010679,2]
[406008121,1771529446436,-855.46604675,0.00010679,2]
[406008125,1771529446469,-8851.59103055,0.00010679,2]
[406008127,1771529446482,-483.51645731,0.00010679,2]
[406008239,1771530632175,-300.0,0.00010367,2]
[406008240,1771530632186,-848.767,0.00010367,2]
[406008241,1771530632196,-216.592,0.00010367,2]
[406008242,1771530632206,-1433.79518,0.00010378,2]
[406008243,1771530632226,-784.99055483,0.00010378,2]
[406008244,1771530632237,-281.21426517,0.00010378,2]
[406008245,1771530632246,-300.0,0.00010378,2]
[406008246,1771530632256,-64.99573483,0.00010478,2]
[406008247,1771530632267,-841.05406,0.00010478,2]
[406008248,1771530632278,-1631.7876338,0.00010478,2]
[406008249,1771530632288,-573.81930629,0.00010478,2]
[406008250,1771530632299,-1618.49160999,0.00010478,2]
[406008251,1771530632335,-781.98694337,0.00010478,2]
[406008254,1771530632346,-3240.38433072,0.00010478,2]
[406008282,1771530640513,-700.0,0.00010478,2]
[406008283,1771530640672,-4171.40803975,0.00010478,2]
[406008313,1771530646333,-5072.51159551,0.00010478,2]
[406008314,1771530646346,-7051.13912273,0.00010478,2]